Workbook

Sheet Měsíční statistika
G1: Sledované období: | H1: 2017-05-01
A3: Přímý nákup mléka mlékárnami a odbytovými organizacemi od producentů, realizovaný na území ČR.
A4: Zdroj: Měsíční výkaz o nákupu mléka Odbyt (MZe) 6 - 12, Měsíční výkaz o nákupu mléka, o výrobě a užití vybraných mlékárenských výrobků Mlék (MZe) 6 - 12.
A6: • Objem měsíčního nákupu mléka a kumulativní objem nákupu mléka od začátku kalendářního (referenčního) roku od producentů v ČR. Zaokrouhleno na tis.l.
A8: • Průměrná měsíční nákupní cena ve smyslu nařízení Komise (EU) č. 479/2010 ve znění pozdějších předpisů _ (Farm gate price = kupní cena vyplacená producentům na území ČR). Zaokrouhleno na dvě desetinná místa.
A9: • Průměrná cena nákupu od začátku roku, kalkulovaná z kumulativní hodnoty nákupu od začátku kalendářního (referenčního) roku včetně doplatků za předchozí měsíce __referenčního roku. Zaokrouhleno na tis. Kč.
A10: • Průměrný obsah tuku a bílkovin v nakoupeném mléce. Zaokrouhleno na dvě desetinná místa.
A11: • Vývoz syrového a tepelně ošetřeného mléka v cisternách vykazovaný zpravodajskými jednotkami statistického šetření Odbyt (MZe) 6 - 12. Zaokrouhleno na tis.l.
A15: Ukazatel | B15: Sledované období | C15: Množství (tis. l) | D15: Hodnota nákupu (bez DPH) tis. Kč | E15: Průměrná kupní cena mléka (Kč/l ) | F15: Průměrný obsah tuku (%) | G15: Průměrný obsah bílkovin (%)
A16: a | B16: b | C16: 1 | E16: 2 | F16: 3 | G16: 4
A17: Přímý nákup mléka od producentů v ČR celkem | B17: za měsíc | C17: 254262 | D17: 2125382 | E17: 8.36 | F17: 3.86 | G17: 3.42
B18: od začátku roku | C18: 1212548 | D18: 9921603 | E18: 8.18 | F18: 3.94 | G18: 3.47
A19: Dodávky mléka v cisternách do zemí EU a třetích zemí celkem | B19: za měsíc | C19: 52570 | D19: x | E19: x | F19: 3.89 | G19: 3.45
B20: od začátku roku | C20: 202227 | D20: x | E20: x | F20: 3.97 | G20: 3.48
A22: x - nesleduje se
A38: Těšnov 17, 117 05 Praha I, Česká republika
A39: tel.: 420 221 111, fax: +420 224 810 478
A40: www.eagri.cz

Sheet Časové řady
A1: Časová řada přímého nákupu mléka mlékárnami a odbytovými organizacemi od producentů v ČR. Časová řada dodávek mléka mimo území ČR.
A2: Zdroj: Měsíční výkaz o nákupu mléka Odbyt (MZe) 6 - 12, Měsíční výkaz o nákupu mléka, o výrobě a užití vybraných mlékárenských výrobků Mlék (MZe) 6 - 12.
A4: • Objem mléka nakoupeného přímo od producentů v jednotlivých měsících kalendářního (referenčního) roku 2017. Zaokrouhleno na tis. l.
A5: • Hodnota nákupu mléka. Zaokrouhleno na tis. Kč.
A6: • Průměrná nákupní cena ve sledovaných měsících, ve smyslu nařízení Komise (EU) č. 479/2010 ve znění pozdějších předpisů (Farm gate price = kupní cena vyplacená producentům na území ČR). _ Zaokrouhleno na dvě desetinná místa.
A7: • Obsah tuku a bílkovin v nakoupeném mléce. Zaokrouhleno na dvě desetinná místa.
A8: • Vývoz syrového a tepelně ošetřeného mléka mimo území ČR vykazovaný zpravodajskými jednotkami statistického šetření Odbyt (MZe) 6 - 12 v jednotlivých měsících kalendářního (referenčního) roku 2017. __Zaokrouhleno na tis. l.
A11: Časová řada I. - XII. 2017
A13: Rok | B13: Měsíc | C13: Přímý nákup mléka od producentů v ČR celkem | J13: Dodávky mléka v cisternách z ČR do zemí EU a třetích zemí celkem
C14: Množství tis. l | D14: Srovnání s předchozím měsícem sledovaného roku % nárůst/pokles | E14: Hodnota nákupu (bez DPH) tis. Kč | F14: Průměrná kupní cena mléka ve sledovaném měsíci Kč/l | G14: Srovnání s předchozím měsícem sledovaného roku % nárůst/pokles | H14: Průměrný obsah tuku % | I14: Průměrný obsah bílkovin % | J14: Množství tis. l | K14: Srovnání s předchozím měsícem sledovaného roku % nárůst/pokles | L14: Průměrný obsah tuku % | M14: Průměrný obsah bílkovin %
A15: 2017 | B15: leden | C15: 239738 | D15: 0 | E15: 1886810 | F15: 7.87 | G15: 0 | H15: 4.06 | I15: 3.54 | J15: 30523 | K15: 0 | L15: 4.12 | M15: 3.59
A16: 2017 | B16: únor | C16: 220972 | D16: =C16/C15-1 -> -0.07827711919 | E16: 1786473 | F16: 8.08 | G16: =F16/F15-1 -> 0.02668360864 | H16: 4 | I16: 3.51 | J16: 32824 | K16: =J16/J15-1 -> 0.07538577466 | L16: 4.05 | M16: 3.54
A17: 2017 | B17: březen | C17: 251077 | D17: =C17/C16-1 -> 0.1362389805 | E17: 2058548 | F17: 8.2 | G17: =F17/F16-1 -> 0.01485148515 | H17: 3.91 | I17: 3.46 | J17: 37871 | K17: =J17/J16-1 -> 0.1537594443 | L17: 3.95 | M17: 3.48
A18: 2017 | B18: duben | C18: 246499 | D18: =C18/C17-1 -> -0.0182334503 | E18: 2049919 | F18: 8.32 | G18: =F18/F17-1 -> 0.01463414634 | H18: 3.9 | I18: 3.44 | J18: 48439 | K18: =J18/J17-1 -> 0.2790525732 | L18: 3.93 | M18: 3.41
A19: 2017 | B19: květen | C19: 254262 | D19: =C19/C18-1 -> 0.03149302837 | E19: 2125382 | F19: 8.36 | G19: =F19/F18-1 -> 0.004807692308 | H19: 3.86 | I19: 3.42 | J19: 52570 | K19: =J19/J18-1 -> 0.08528252028 | L19: 3.89 | M19: 3.45
A20: 2017 | B20: červen
A21: 2017 | B21: červenec
A22: 2017 | B22: srpen
A23: 2017 | B23: září
A24: 2017 | B24: říjen
A25: 2017 | B25: listopad
A26: 2017 | B26: prosinec
A30: Kumulativní hodnoty a vážené průměry sledovaných ukazatelů od začátku referenčního (kalendářního) roku 2017.
A31: Zdroj: Měsíční výkaz o nákupu mléka Odbyt (MZe) 6 - 12, Měsíční výkaz o nákupu mléka, o výrobě a užití vybraných mlékárenských výrobků Mlék (MZe) 6 - 12.
A33: • Objem mléka nakoupeného přímo od producentů - kumulativní nápočet od 1. 1. 2017. Zaokrouhleno na tis.l.
A34: • Hodnota nákupu mléka včetně doplatků a srážek za předchozí měsíce referenčního (kalendářního roku). Zaokrouhleno na tis. Kč.
A35: • Kalkulovaná průměrná cena nákupu včetně doplatků a srážek za předchozí měsíce referenčního (kalendářního) roku. Zaokrouhleno na dvě desetinná místa.
A36: • Obsah tuku a bílkovin v nakoupeném mléce - vážený průměr od 1. 1. 2017. Zaokrouhleno na dvě destinná místa.
A37: • Vývoz syrového a tepelně ošetřeného mléka mimo území ČR vykazovaný zpravodajskými jednotkami statistického šetření Odbyt (MZe) 6 - 12 - kumulativní nápočet od 1. 1. 2017. __Zaokrouhleno na dvě desetinná místa.
A40: Referenční období I. - XII. 2017
A42: Rok | B42: Měsíc | C42: Přímý nákup mléka od producentů v ČR celkem | H42: Dodávky mléka v cisternách z ČR do zemí EU a třetích zemí celkem
C43: Množství tis. l | D43: Hodnota nákupu od začátku roku referenčního roku včeně doplatků a srážek za minulá období (bez DPH) tis. Kč | E43: Kalkulovaná průměrná cena nákupu od začátku referenčního roku včetně doplatků a srážek za minulá období Kč/l | F43: Průměrný obsah tuku % | G43: Průměrný obsah bílkovin % | H43: Množství tis. l | I43: Průměrný obsah tuku % | J43: Průměrný obsah bílkovin %
A44: 2017 | B44: leden | C44: 239738 | D44: 1886810 | E44: 7.87 | F44: 4.06 | G44: 3.54 | H44: 30523 | I44: 4.12 | J44: 3.59
A45: 2017 | B45: únor | C45: 460710 | D45: *3 678 007,00 | E45: 7.99 | F45: 4.03 | G45: 3.53 | H45: 63347 | I45: 4.09 | J45: 3.56
A46: 2017 | B46: březen | C46: 711787 | D46: 5739251 | E46: 8.08 | F46: 3.99 | G46: 3.5 | H46: 101218 | I46: 4.04 | J46: 3.53
A47: 2017 | B47: duben | C47: 958286 | D47: 7793555 | E47: 8.13 | F47: 3.97 | G47: 3.49 | H47: 149657 | I47: 4 | J47: 3.49
A48: 2017 | B48: květen | C48: 1212548 | D48: 9921603 | E48: 8.18 | F48: 3.94 | G48: 3.47 | H48: 202227 | I48: 3.97 | J48: 3.48
A49: 2017 | B49: červen
A50: 2017 | B50: červenec
A51: 2017 | B51: srpen
A52: 2017 | B52: září
A53: 2017 | B53: říjen
A54: 2017 | B54: listopad
A55: 2017 | B55: prosinec
A57: *definitivní údaj po aktualizaci ZJ
A76: Těšnov 17, 117 05 Praha I, Česká republika
A77: tel.: 420 221 111, fax: +420 224 810 478
A78: www.eagri.cz

Sheet Srovnávací rok 2016, grafy
A1: Rok | B1: Měsíc | C1: Přímý nákup mléka od producentů v ČR celkem | G1: Dodávky mléka v cisternách z ČR do zemí EU a třetích zemí celkem
C2: Množství tis. l | D2: Srovnání s odpovídajícím měsícem předchozího roku 2016 | E2: Průměrná cena ve sledovaném měsíci Kč/l | F2: Srovnání s odpovídající průměrnou měsíční cenou předchozího roku 2016 | G2: Množství tis. l | H2: Srovnání s odpovídajícím měsícem předchozího roku 2016
A3: 2016 | B3: leden | C3: 230485 | D3: Srovnávací rok | E3: 7.4 | F3: Srovnávací rok | G3: 33059 | H3: Srovnávací rok
A4: 2016 | B4: únor | C4: 229794 | E4: 7.18 | G4: 34145
A5: 2016 | B5: březen | C5: 249093 | E5: 6.89 | G5: 34918
A6: 2016 | B6: duben | C6: 232301 | E6: 6.65 | G6: 34138
A7: 2016 | B7: květen | C7: 237433 | E7: 6.35 | G7: 35620
A8: 2016 | B8: červen | C8: 224960 | E8: 6.16 | G8: 33959
A9: 2016 | B9: červenec | C9: 230954 | E9: 6.13 | G9: 35780
A10: 2016 | B10: srpen | C10: 228108 | E10: 6.2 | G10: 35081
A11: 2016 | B11: září | C11: 213674 | E11: 6.44 | G11: 32637
A12: 2016 | B12: říjen | C12: 218829 | E12: 6.8 | G12: 33648
A13: 2016 | B13: listopad | C13: 206418 | D13: 2016 | E13: 7.192762435 | F13: 2016 | G13: 32072 | H13: 2016
A14: 2016 | B14: prosinec | C14: 217713 | E14: 7.57 | G14: 33797
A15: 2017 | B15: leden | C15: 239738 | D15: =C15/C3-1 -> 0.04014577955 | E15: 7.87 | F15: =E15/E3-1 -> 0.06351351351 | G15: 30523 | H15: =G15/G3-1 -> -0.07671133428
A16: 2017 | B16: únor | C16: 220972 | D16: =C16/C4-1 -> -0.03839090664 | E16: 8.08 | F16: =E16/E4-1 -> 0.1253481894 | G16: 32824 | H16: =G16/G4-1 -> -0.03868794846
A17: 2017 | B17: březen | C17: 251077 | D17: =C17/C5-1 -> 0.007964896645 | E17: 8.2 | F17: =E17/E5-1 -> 0.1901306241 | G17: 37871 | H17: =G17/G5-1 -> 0.08456956298
A18: 2017 | B18: duben | C18: 246499 | D18: =C18/C6-1 -> 0.06111897926 | E18: 8.32 | F18: =E18/E6-1 -> 0.2511278195 | G18: 48439 | H18: =G18/G6-1 -> 0.4189173355
A19: 2017 | B19: květen | C19: 254262 | D19: =C19/C7-1 -> 0.07087894269 | E19: 8.36 | F19: =E19/E7-1 -> 0.3165354331 | G19: 52570 | H19: =G19/G7-1 -> 0.4758562605
A20: 2017 | B20: červen
A21: 2017 | B21: červenec
A22: 2017 | B22: srpen
A23: 2017 | B23: září
A24: 2017 | B24: říjen
A25: 2017 | B25: listopad
A26: 2017 | B26: prosinec
A95: Těšnov 17, 117 05 Praha I, Česká republika
A96: tel.: 420 221 111, fax: +420 224 810 478
A97: www.eagri.cz

Sheet Komentář
